fUSD/lending_fUSD_20251225
["ID","MTS","AMOUNT","RATE_DAILY","PERIOD"]
[399785557,1766675449529,-613.68490474,0.00016406,2]
[399785558,1766675449539,-296.20815383,0.0001642,2]
[399785559,1766675449549,-277.27144016,0.0001642,2]
[399785560,1766675449559,-159.81844232,0.0001642,2]
[399785561,1766675449568,-206.63382846,0.0001642,2]
[399785562,1766675449579,-399.59949094,0.0001642,2]
[399785563,1766675449588,-192.8242755,0.0001642,2]
[399785564,1766675449598,-150.0,0.0001642,2]
[399785565,1766675449609,-150.0,0.0001642,2]
[399785566,1766675449618,-150.0,0.00016427,2]
[399785567,1766675449628,-617.40005154,0.0001643,2]
[399785568,1766675449639,-150.0,0.00016431,2]
[399785569,1766675449648,-150.0,0.00016434,2]
[399785570,1766675449659,-150.0,0.00016437,2]
[399785571,1766675449669,-296.20815383,0.00016437,2]
[399785572,1766675449679,-277.27144016,0.00016437,2]
[399785573,1766675449688,-159.81844232,0.00016437,2]
[399785574,1766675449697,-206.63382846,0.00016437,2]
[399785575,1766675449709,-399.59949094,0.00016437,2]
[399785576,1766675449722,-192.8242755,0.00016437,2]
[399785577,1766675449732,-500.0,0.00016438,2]
[399785578,1766675449742,-500.0,0.00016438,2]
[399785579,1766675449753,-500.0,0.00016438,2]
[399785580,1766675449763,-500.0,0.00016438,2]
[399785581,1766675449773,-500.0,0.00016438,2]
[399785582,1766675449783,-500.0,0.00016438,2]
[399785583,1766675449794,-500.0,0.00016438,2]
[399785584,1766675449804,-500.0,0.00016438,2]
[399785585,1766675449815,-500.0,0.00016438,2]
[399785586,1766675449825,-500.0,0.00016438,2]
[399785587,1766675449835,-597.63745103,0.00016438,2]
[399785588,1766675449844,-500.0,0.00016438,2]
[399785589,1766675449855,-607.80326226,0.00016438,2]
[399785590,1766675449865,-607.80326226,0.00016438,2]
[399785591,1766675449878,-607.80326226,0.00016438,2]
[399785592,1766675449888,-607.80326226,0.00016438,2]
[399785593,1766675449898,-607.80326226,0.00016438,2]
[399785594,1766675449908,-607.80326226,0.00016438,2]
[399785595,1766675449918,-607.80326226,0.00016438,2]
[399785596,1766675449927,-607.80326226,0.00016438,2]
[399785597,1766675449937,-607.80326226,0.00016438,2]
[399785598,1766675449947,-607.80326226,0.00016438,2]
[399785599,1766675449956,-607.80326226,0.00016438,2]
[399785600,1766675449966,-607.80326226,0.00016438,2]
[399785601,1766675449976,-607.80326226,0.00016438,2]
[399785602,1766675449986,-607.80326226,0.00016438,2]
[399785603,1766675449996,-607.80326226,0.00016438,2]
[399785604,1766675450005,-607.80326226,0.00016438,2]
[399785605,1766675450016,-607.80326226,0.00016438,2]
[399785606,1766675450026,-607.80326226,0.00016438,2]
[399785607,1766675450036,-607.80326226,0.00016438,2]
[399785608,1766675450046,-607.80326226,0.00016438,2]
[399785609,1766675450055,-607.80326226,0.00016438,2]
[399785610,1766675450064,-607.80326226,0.00016438,2]
[399785611,1766675450074,-607.80326226,0.00016438,2]
[399785612,1766675450083,-607.80326226,0.00016438,2]
[399785613,1766675450093,-607.80326226,0.00016438,2]
[399785614,1766675450103,-607.80326226,0.00016438,2]
[399785615,1766675450113,-607.80326226,0.00016438,2]
[399785616,1766675450123,-607.80326226,0.00016438,2]
[399785617,1766675450134,-607.80326226,0.00016438,2]
[399785618,1766675450144,-607.80326226,0.00016438,2]
[399785619,1766675450154,-607.80326226,0.00016438,2]
[399785620,1766675450164,-607.80326226,0.00016438,2]
[399785621,1766675450174,-607.80326226,0.00016438,2]
[399785622,1766675450183,-607.80326226,0.00016438,2]
[399785623,1766675450192,-607.80326226,0.00016438,2]
[399785624,1766675450203,-602.61469782,0.00016438,2]
[399785625,1766675450213,-602.61469782,0.00016438,2]
[399785626,1766675450223,-602.61469782,0.00016438,2]
[399785627,1766675450233,-602.61469782,0.00016438,2]
[399785628,1766675450242,-602.61469782,0.00016438,2]
[399785629,1766675450252,-602.61469782,0.00016438,2]
[399785630,1766675450262,-602.61469782,0.00016438,2]
[399785631,1766675450272,-602.61469782,0.00016438,2]
[399785632,1766675450282,-602.61469782,0.00016438,2]
[399785633,1766675450292,-602.61469782,0.00016438,2]
[399785634,1766675450301,-602.61469782,0.00016438,2]
[399785635,1766675450311,-602.61469782,0.00016438,2]
[399785636,1766675450320,-602.61469782,0.00016438,2]
[399785637,1766675450330,-602.61469782,0.00016438,2]
[399785638,1766675450339,-602.61469782,0.00016438,2]
[399785639,1766675450349,-602.61469782,0.00016438,2]
[399785640,1766675450358,-602.61469782,0.00016438,2]
[399785641,1766675450368,-602.61469782,0.00016438,2]
[399785642,1766675450377,-602.61469782,0.00016438,2]
[399785643,1766675450387,-602.61469782,0.00016438,2]
[399785644,1766675450396,-602.61469782,0.00016438,2]
[399785645,1766675450406,-602.61469782,0.00016438,2]
[399785646,1766675450415,-602.61469782,0.00016438,2]
[399785647,1766675450425,-610.9843464,0.00016438,2]
[399785648,1766675450435,-610.9843464,0.00016438,2]
[399785649,1766675450445,-610.9843464,0.00016438,2]
[399785650,1766675450454,-610.9843464,0.00016438,2]
[399785651,1766675450464,-610.9843464,0.00016438,2]
[399785652,1766675450473,-610.9843464,0.00016438,2]
[399785653,1766675450483,-610.9843464,0.00016438,2]
[399785654,1766675450496,-610.9843464,0.00016438,2]
[399785655,1766675450506,-610.9843464,0.00016438,2]
[399785656,1766675450515,-610.9843464,0.00016438,2]
[399785657,1766675450525,-610.9843464,0.00016438,2]
[399785658,1766675450536,-610.9843464,0.00016438,2]
[399785659,1766675450546,-610.9843464,0.00016438,2]
[399785660,1766675450556,-610.9843464,0.00016438,2]
[399785661,1766675450571,-610.9843464,0.00016438,2]
[399785662,1766675450580,-610.9843464,0.00016438,2]
[399785663,1766675450590,-610.9843464,0.00016438,2]
[399785664,1766675450600,-610.9843464,0.00016438,2]
[399785665,1766675450610,-610.98434636,0.00016438,2]
[399785666,1766675450619,-500.0,0.00016438,2]
[399785667,1766675450629,-809.0,0.00016438,2]
[399785668,1766675450639,-800.0,0.00016438,2]
[399785669,1766675450648,-716.0,0.00016438,2]
[399785670,1766675450657,-150.0,0.00016449,2]
[399785671,1766675450667,-296.20815383,0.00016454,2]
[399785672,1766675450678,-277.27144016,0.00016454,2]
[399785673,1766675450688,-159.81844232,0.00016454,2]
[399785674,1766675450698,-206.63382846,0.00016454,2]
[399785675,1766675450711,-399.59949094,0.00016454,2]
[399785676,1766675450721,-192.8242755,0.00016454,2]
[399785677,1766675450732,-150.0,0.00016464,2]
[399785678,1766675450742,-150.0,0.00016464,2]
[399785679,1766675450753,-500.0,0.00016465,2]
[399785680,1766675450764,-150.0,0.0001647,2]
[399785681,1766675450774,-296.20815383,0.00016472,2]
[399785682,1766675450786,-277.27144016,0.00016472,2]
[399785683,1766675450805,-159.81844232,0.00016472,2]
[399785684,1766675450815,-206.63382846,0.00016472,2]
[399785685,1766675450826,-399.59949094,0.00016472,2]
[399785686,1766675450836,-192.8242755,0.00016472,2]
[399785687,1766675450846,-150.0,0.00016477,2]
[399785688,1766675450856,-150.0,0.00016487,2]
[399785689,1766675450867,-296.20815383,0.00016489,2]
[399785690,1766675450877,-277.27144016,0.00016489,2]
[399785691,1766675450887,-159.81844232,0.00016489,2]
[399785692,1766675450897,-206.63382846,0.00016489,2]
[399785693,1766675450907,-399.59949094,0.00016489,2]
[399785694,1766675450916,-192.8242755,0.00016489,2]
[399785695,1766675450927,-150.0,0.00016492,2]
[399785696,1766675450936,-500.0,0.00016493,2]
[399785697,1766675450950,-150.0,0.00016496,2]
[399785698,1766675450960,-296.20815383,0.00016506,2]
[399785699,1766675450971,-277.27144016,0.00016506,2]
[399785700,1766675450980,-159.81844232,0.00016506,2]
[399785701,1766675450990,-206.63382846,0.00016506,2]
[399785702,1766675451001,-399.59949094,0.00016506,2]
[399785703,1766675451011,-192.8242755,0.00016506,2]
[399785704,1766675451020,-150.0,0.00016513,2]
[399785705,1766675451030,-150.0,0.00016519,2]
[399785706,1766675451040,-500.0,0.0001652,2]
[399785707,1766675451051,-296.20815383,0.00016523,2]
[399785708,1766675451060,-277.27144016,0.00016523,2]
[399785709,1766675451070,-159.81844232,0.00016523,2]
[399785710,1766675451081,-206.63382846,0.00016523,2]
[399785711,1766675451092,-399.59949094,0.00016523,2]
[399785712,1766675451102,-192.8242755,0.00016523,2]
[399785713,1766675451112,-150.0,0.00016529,2]
[399785714,1766675451124,-150.0,0.00016529,2]
[399785715,1766675451135,-5315.72073937,0.00016533,2]
[399785716,1766675451145,-8120.72127121,0.00016533,2]
[399785717,1766675451156,-150.0,0.00016535,2]
[399785718,1766675451166,-150.0,0.00016537,2]
[399785719,1766675451177,-296.20815383,0.0001654,2]
[399785720,1766675451187,-277.27144016,0.0001654,2]
[399785721,1766675451196,-159.81844232,0.0001654,2]
[399785722,1766675451207,-206.63382846,0.0001654,2]
[399785723,1766675451217,-399.59949094,0.0001654,2]
[399785724,1766675451227,-192.8242755,0.0001654,2]
[399785725,1766675451237,-500.0,0.00016548,2]
[399785726,1766675451247,-150.0,0.00016556,2]
[399785727,1766675451257,-296.20815383,0.00016557,2]
[399785728,1766675451267,-277.27144016,0.00016557,2]
[399785729,1766675451276,-159.81844232,0.00016557,2]
[399785730,1766675451287,-206.63382846,0.00016557,2]
[399785731,1766675451296,-399.59949094,0.00016557,2]
[399785732,1766675451306,-192.8242755,0.00016557,2]
[399785733,1766675451316,-150.0,0.00016562,2]
[399785734,1766675451326,-150.0,0.00016562,2]
[399785735,1766675451336,-150.0,0.00016562,2]
[399785736,1766675451346,-150.0,0.00016562,2]
[399785737,1766675451355,-514.26394542,0.00016572,2]
[399785738,1766675451364,-296.20815383,0.00016575,2]
[399785739,1766675451373,-277.27144016,0.00016575,2]
[399785740,1766675451382,-159.81844232,0.00016575,2]
[399785741,1766675451393,-206.63382846,0.00016575,2]
[399785742,1766675451403,-399.59949094,0.00016575,2]
[399785743,1766675451412,-192.8242755,0.00016575,2]
[399785744,1766675451422,-500.0,0.00016575,2]
[399785745,1766675451433,-150.0,0.00016578,2]
[399785746,1766675451442,-150.0,0.00016587,2]
[399785747,1766675451452,-296.20815383,0.00016592,2]
[399785748,1766675451462,-277.27144016,0.00016592,2]
[399785749,1766675451472,-159.81844232,0.00016592,2]
[399785750,1766675451482,-206.63382846,0.00016592,2]
[399785751,1766675451492,-399.59949094,0.00016592,2]
[399785752,1766675451502,-192.8242755,0.00016592,2]
[399785753,1766675451511,-150.0,0.00016594,2]
[399785754,1766675451522,-150.0,0.00016594,2]
[399785755,1766675451532,-150.0,0.00016599,2]
[399785756,1766675451542,-500.0,0.00016602,2]
[399785757,1766675451551,-150.0,0.00016604,2]
[399785758,1766675451561,-296.20815383,0.00016609,2]
[399785759,1766675451571,-277.27144016,0.00016609,2]
[399785760,1766675451580,-159.81844232,0.00016609,2]
[399785761,1766675451591,-206.63382846,0.00016609,2]
[399785762,1766675451601,-399.59949094,0.00016609,2]
[399785763,1766675451611,-192.8242755,0.00016609,2]
[399785764,1766675451621,-150.0,0.00016621,2]
[399785765,1766675451631,-296.20815383,0.00016626,2]
[399785766,1766675451642,-277.27144016,0.00016626,2]
[399785767,1766675451652,-159.81844232,0.00016626,2]
[399785768,1766675451663,-206.63382846,0.00016626,2]
[399785769,1766675451672,-399.59949094,0.00016626,2]
[399785770,1766675451683,-192.8242755,0.00016626,2]
[399785771,1766675451693,-150.0,0.00016627,2]
[399785772,1766675451703,-500.0,0.0001663,2]
[399785773,1766675451722,-150.0,0.00016637,2]
[399785774,1766675451738,-150.0,0.00016642,2]
[399785775,1766675451750,-296.20815383,0.00016643,2]
[399785776,1766675451760,-277.27144016,0.00016643,2]
[399785777,1766675451769,-159.81844232,0.00016643,2]
[399785778,1766675451780,-206.63382846,0.00016643,2]
[399785779,1766675451791,-399.59949094,0.00016643,2]
[399785780,1766675451801,-192.8242755,0.00016643,2]
[399785781,1766675451811,-150.0,0.00016647,2]
[399785782,1766675451820,-500.0,0.00016657,2]
[399785783,1766675451830,-150.0,0.0001666,2]
[399785784,1766675451841,-150.0,0.0001666,2]
[399785785,1766675451852,-8034.10363769,0.0001666,2]
[399785786,1766675451862,-296.20815383,0.0001666,2]
[399785787,1766675451871,-277.27144016,0.0001666,2]
[399785788,1766675451882,-159.81844232,0.0001666,2]
[399785789,1766675451892,-206.63382846,0.0001666,2]
[399785790,1766675451903,-399.59949094,0.0001666,2]
[399785791,1766675451913,-192.8242755,0.0001666,2]
[399785792,1766675451923,-150.0,0.00016664,2]
[399785793,1766675451932,-296.20815383,0.00016677,2]
[399785794,1766675451942,-277.27144016,0.00016677,2]
[399785795,1766675451953,-159.81844232,0.00016677,2]
[399785796,1766675451964,-206.63382846,0.00016677,2]
[399785797,1766675451974,-399.59949094,0.00016677,2]
[399785798,1766675451984,-192.8242755,0.00016677,2]
[399785799,1766675451994,-218.80351721,0.00016685,2]
[399785800,1766675452004,-150.0,0.00016685,2]
[399785801,1766675452015,-150.0,0.00016687,2]
[399785802,1766675452024,-150.0,0.00016689,2]
[399785803,1766675452034,-150.0,0.00016692,2]
[399785804,1766675452044,-296.20815383,0.00016695,2]
[399785805,1766675452053,-277.27144016,0.00016695,2]
[399785806,1766675452063,-159.81844232,0.00016695,2]
[399785807,1766675452074,-206.63382846,0.00016695,2]
[399785808,1766675452084,-399.59949094,0.00016695,2]
[399785809,1766675452093,-192.8242755,0.00016695,2]
[399785810,1766675452103,-642.94,0.00016703,2]
[399785811,1766675452112,-334.5472959,0.00016703,2]
[399785812,1766675452123,-151.0,0.00016703,2]
[399785813,1766675452132,-287.61899177,0.00016703,2]
[399785814,1766675452142,-150.0,0.00016703,2]
[399785815,1766675452152,-150.0,0.00016703,2]
[399785816,1766675452162,-150.0,0.00016707,2]
[399785817,1766675452172,-296.20815383,0.00016712,2]
[399785818,1766675452183,-277.27144016,0.00016712,2]
[399785819,1766675452193,-159.81844232,0.00016712,2]
[399785820,1766675452203,-206.63382846,0.00016712,2]
[399785821,1766675452213,-399.59949094,0.00016712,2]
[399785822,1766675452223,-192.8242755,0.00016712,2]
[399785823,1766675452233,-150.0,0.00016725,2]
[399785824,1766675452243,-150.0,0.00016725,2]
[399785825,1766675452254,-150.0,0.00016728,2]
[399785826,1766675452263,-296.20815383,0.00016729,2]
[399785827,1766675452273,-277.27144016,0.00016729,2]
[399785828,1766675452283,-159.81844232,0.00016729,2]
[399785829,1766675452293,-206.63382846,0.00016729,2]
[399785830,1766675452302,-399.59949094,0.00016729,2]
[399785831,1766675452312,-192.8242755,0.00016729,2]
[399785832,1766675452322,-308.61264672,0.00016731,2]
[399785833,1766675452332,-500.0,0.00016731,2]
[399785834,1766675452341,-598.60555363,0.00016731,2]
[399785835,1766675452351,-1000.0,0.00016731,2]
[399785836,1766675452361,-500.0,0.00016731,2]
[399785837,1766675452371,-500.0,0.00016731,2]
[399785838,1766675452380,-559.28446362,0.00016731,2]
[399785839,1766675452390,-500.0,0.00016731,2]
[399785840,1766675452399,-500.0,0.00016731,2]
[399785841,1766675452408,-500.0,0.00016731,2]
[399785842,1766675452418,-500.0,0.00016731,2]
[399785843,1766675452428,-207.3850141,0.00016731,2]
[399785844,1766675452438,-500.0,0.00016731,2]
[399785845,1766675452448,-500.0,0.00016731,2]
[399785846,1766675452457,-500.0,0.00016731,2]
[399785847,1766675452467,-500.0,0.00016731,2]
[399785848,1766675452477,-500.0,0.00016731,2]
[399785849,1766675452487,-500.0,0.00016731,2]
[399785850,1766675452496,-500.0,0.00016731,2]
[399785851,1766675452505,-150.0,0.00016732,2]
[399785852,1766675452516,-150.0,0.00016737,2]
[399785853,1766675452526,-296.20815383,0.00016746,2]
[399785854,1766675452536,-277.27144016,0.00016746,2]
[399785855,1766675452546,-159.81844232,0.00016746,2]
[399785856,1766675452556,-206.63382846,0.00016746,2]
[399785857,1766675452566,-399.59949094,0.00016746,2]
[399785858,1766675452576,-192.8242755,0.00016746,2]
[399785859,1766675452587,-150.0,0.0001675,2]
[399785860,1766675452597,-150.0,0.00016758,2]
[399785861,1766675452607,-296.20815383,0.00016763,2]
[399785862,1766675452617,-277.27144016,0.00016763,2]
[399785863,1766675452627,-159.81844232,0.00016763,2]
[399785864,1766675452638,-206.63382846,0.00016763,2]
[399785865,1766675452649,-399.59949094,0.00016763,2]
[399785866,1766675452659,-192.8242755,0.00016763,2]
[399785867,1766675452669,-150.0,0.00016771,2]
[399785868,1766675452679,-150.0,0.00016774,2]
[399785869,1766675452691,-150.0,0.00016774,2]
[399785870,1766675452712,-2624.0,0.00016777,2]
[399785871,1766675452724,-296.20815383,0.0001678,2]
[399785872,1766675452734,-277.27144016,0.0001678,2]
[399785873,1766675452744,-159.81844232,0.0001678,2]
[399785874,1766675452755,-206.63382846,0.0001678,2]
[399785875,1766675452765,-399.59949094,0.0001678,2]
[399785876,1766675452775,-192.8242755,0.0001678,2]
[399785877,1766675452787,-150.0,0.00016786,2]
[399785878,1766675452797,-150.0,0.0001679,2]
[399785879,1766675452808,-150.0,0.0001679,2]
[399785880,1766675452818,-150.0,0.00016793,2]
[399785881,1766675452828,-296.20815383,0.00016798,2]
[399785882,1766675452838,-277.27144016,0.00016798,2]
[399785883,1766675452848,-159.81844232,0.00016798,2]
[399785884,1766675452859,-206.63382846,0.00016798,2]
[399785885,1766675452869,-399.59949094,0.00016798,2]
[399785886,1766675452879,-192.8242755,0.00016798,2]
[399785887,1766675452890,-150.0,0.00016814,2]
[399785888,1766675452901,-296.20815383,0.00016815,2]
[399785889,1766675452911,-277.27144016,0.00016815,2]
[399785890,1766675452921,-159.81844232,0.00016815,2]
[399785891,1766675452932,-206.63382846,0.00016815,2]
[399785892,1766675452942,-399.59949094,0.00016815,2]
[399785893,1766675452953,-192.8242755,0.00016815,2]
[399785894,1766675452963,-150.0,0.00016816,2]
[399785895,1766675452973,-150.0,0.00016823,2]
[399785896,1766675452984,-296.20815383,0.00016832,2]
[399785897,1766675452993,-277.27144016,0.00016832,2]
[399785898,1766675453004,-159.81844232,0.00016832,2]
[399785899,1766675453014,-206.63382846,0.00016832,2]
[399785900,1766675453024,-399.59949094,0.00016832,2]
[399785901,1766675453035,-192.8242755,0.00016832,2]
[399785902,1766675453045,-150.0,0.00016836,2]
[399785903,1766675453055,-150.0,0.00016836,2]
[399785904,1766675453066,-150.0,0.00016845,2]
[399785905,1766675453076,-193.84,0.00016845,2]
[399785906,1766675453087,-296.20815383,0.00016849,2]
[399785907,1766675453097,-277.27144016,0.00016849,2]
[399785908,1766675453107,-159.81844232,0.00016849,2]
[399785909,1766675453117,-206.63382846,0.00016849,2]
[399785910,1766675453127,-399.59949094,0.00016849,2]
[399785911,1766675453138,-192.8242755,0.00016849,2]
[399785912,1766675453149,-150.0,0.00016856,2]
[399785913,1766675453160,-150.0,0.00016856,2]
[399785914,1766675453171,-150.0,0.00016857,2]
[399785915,1766675453181,-150.0,0.00016859,2]
[399785916,1766675453192,-200.0,0.00016863,2]
[399785917,1766675453202,-200.0,0.00016864,2]
[399785918,1766675453212,-200.0,0.00016864,2]
[399785919,1766675453223,-296.20815383,0.00016866,2]
[399785920,1766675453233,-277.27144016,0.00016866,2]
[399785921,1766675453243,-159.81844232,0.00016866,2]
[399785922,1766675453253,-206.63382846,0.00016866,2]
[399785923,1766675453263,-399.59949094,0.00016866,2]
[399785924,1766675453274,-192.8242755,0.00016866,2]
[399785925,1766675453284,-150.0,0.00016879,2]
[399785926,1766675453295,-25000.0,0.00016882,3]
[399785927,1766675453306,-296.20815383,0.00016883,2]
[399785928,1766675453316,-277.27144016,0.00016883,2]
[399785929,1766675453326,-159.81844232,0.00016883,2]
[399785930,1766675453336,-206.63382846,0.00016883,2]
[399785931,1766675453351,-399.59949094,0.00016883,2]
[399785932,1766675453361,-192.8242755,0.00016883,2]
[399785933,1766675453372,-150.0,0.00016886,2]
[399785934,1766675453383,-150.0,0.00016888,2]
[399785935,1766675453393,-25000.0,0.00016891,3]
[399785936,1766675453403,-25000.0,0.000169,3]
[399785937,1766675453414,-10000.0,0.000169,2]
[399785938,1766675453424,-25000.0,0.000169,3]
[399785939,1766675453434,-2141.13101448,0.000169,2]
[399785940,1766675453444,-214.20136534,0.000169,2]
[399785941,1766675453455,-5315.72073937,0.000169,2]
[399785942,1766675453466,-8120.72127121,0.000169,2]
[399785943,1766675453476,-1926.43051864,0.000169,3]
[399785944,1766675453487,-170.28248417,0.000169,2]
[399785945,1766675453497,-156.81485744,0.000169,2]
[399785946,1766675453507,-613.68490474,0.000169,2]
[399785947,1766675453517,-789.11969302,0.000169,2]
[399785948,1766675453528,-150.0,0.000169,2]
[399785949,1766675453538,-296.20815383,0.00016901,2]
[399785950,1766675453548,-277.27144016,0.00016901,2]
[399785951,1766675453559,-159.81844232,0.00016901,2]
[399785952,1766675453568,-206.63382846,0.00016901,2]
[399785953,1766675453578,-399.59949094,0.00016901,2]
[399785954,1766675453590,-192.8242755,0.00016901,2]
[399785955,1766675453601,-150.0,0.00016901,2]
[399785956,1766675453611,-188.55950753,0.00016911,2]
[399785957,1766675453622,-622.31367143,0.00016912,2]
[399785958,1766675453632,-30000.0,0.00016912,2]
[399785959,1766675453643,-296.20815383,0.00016918,2]
[399785960,1766675453653,-277.27144016,0.00016918,2]
[399785961,1766675453664,-159.81844232,0.00016918,2]
[399785962,1766675453674,-206.63382846,0.00016918,2]
[399785963,1766675453684,-399.59949094,0.00016918,2]
[399785964,1766675453696,-192.8242755,0.00016918,2]
[399785965,1766675453706,-150.0,0.00016921,2]
[399785966,1766675453720,-150.0,0.00016921,2]
[399785967,1766675453731,-150.0,0.00016922,2]
[399785968,1766675453741,-296.20815383,0.00016935,2]
[399785969,1766675453751,-277.27144016,0.00016935,2]
[399785970,1766675453762,-159.81844232,0.00016935,2]
[399785971,1766675453772,-206.63382846,0.00016935,2]
[399785972,1766675453783,-399.59949094,0.00016935,2]
[399785973,1766675453795,-192.8242755,0.00016935,2]
[399785974,1766675453806,-150.0,0.00016936,2]
[399785975,1766675453816,-150.0,0.00016943,2]
[399785976,1766675453826,-150.0,0.00016944,2]
[399785977,1766675453837,-296.20815383,0.00016952,2]
[399785978,1766675453847,-277.27144016,0.00016952,2]
[399785979,1766675453859,-159.81844232,0.00016952,2]
[399785980,1766675453869,-206.63382846,0.00016952,2]
[399785981,1766675453880,-399.59949094,0.00016952,2]
[399785982,1766675453891,-192.8242755,0.00016952,2]
[399785983,1766675453901,-150.0,0.00016954,2]
[399785984,1766675453911,-150.0,0.00016965,2]
[399785985,1766675453923,-296.20815383,0.00016969,2]
[399785986,1766675453933,-277.27144016,0.00016969,2]
[399785987,1766675453945,-159.81844232,0.00016969,2]
[399785988,1766675453956,-206.63382846,0.00016969,2]
[399785989,1766675453967,-399.59949094,0.00016969,2]
[399785990,1766675453978,-192.8242755,0.00016969,2]
[399785991,1766675453993,-500.0,0.0001697,2]
[399785992,1766675454003,-500.0,0.0001697,2]
[399785993,1766675454014,-500.0,0.0001697,2]
[399785994,1766675454025,-800.78551976,0.0001697,2]
[399785995,1766675454036,-500.0,0.00016973,2]
[399785996,1766675454046,-150.0,0.00016973,2]
[399785997,1766675454057,-640.24385345,0.00016978,2]
[399785998,1766675454067,-2624.0,0.00016983,2]
[399785999,1766675454079,-167.21477836,0.00016986,2]
[399786000,1766675454091,-104575.92,0.00016986,2]
[399786001,1766675454102,-296.20815383,0.00016986,2]
[399786002,1766675454113,-277.27144016,0.00016986,2]
[399786003,1766675454123,-159.81844232,0.00016986,2]
[399786004,1766675454134,-190.41715558,0.00016986,2]
[399786005,1766675454144,-217.62219692,0.00016986,2]
[399786006,1766675454154,-206.63382846,0.00016986,2]
[399786007,1766675454165,-399.59949094,0.00016986,2]
[399786008,1766675454176,-192.8242755,0.00016986,2]
[399786009,1766675454187,-171.10828189,0.00016986,2]
[399786010,1766675454199,-250.03401256,0.00016986,2]
[399786011,1766675454209,-199.77046781,0.00016986,2]
[399786012,1766675454219,-195.8030936,0.00016986,2]
[399786013,1766675454230,-270.36367616,0.00016986,2]
[399786014,1766675454240,-176.41435158,0.00016986,2]
[399786015,1766675454251,-201.03741992,0.00016986,2]
[399786016,1766675454261,-245.69368063,0.00016986,2]
[399786017,1766675454272,-690.4064603,0.0001699,2]
[399786018,1766675454283,-690.4064603,0.0001699,2]
[399786019,1766675454293,-1870.0667079,0.00016992,2]
[399786020,1766675454304,-14932.7653425,0.00016992,2]
[399786021,1766675454314,-5948.6703435,0.00016992,2]
[399786022,1766675454324,-1803.8696677,0.00016992,2]
[399786023,1766675454335,-1060.87558749,0.00016999,5]
[399786024,1766675454348,-150.0,0.00016999,2]
[399786025,1766675454358,-300.0,0.00016999,2]
[399786026,1766675454368,-666.0,0.00016999,2]
[399786027,1766675454379,-300.0,0.00016999,2]
[399786028,1766675454389,-666.0,0.00016999,2]
[399786029,1766675454399,-5382363.48814772,0.00017,2]
[399786030,1766675454770,-197.72643171,0.00013441,2]
[399786031,1766675454782,-151.0,0.00014504,2]
[399786032,1766675454794,-386.51965616,0.00017,2]
[399786033,1766675454808,-392009.27789091,0.00017,2]
[399786034,1766675454827,-1137.79536712,0.00017,2]
[399786035,1766675454841,-619.94646908,0.00017,2]
[399786036,1766675454855,-7569.95305312,0.00017,2]
[399786037,1766675454977,-2979.06507186,0.00017,2]
[399786038,1766675454991,-1988.8604776,0.00017,2]
[399786039,1766675455478,-355.59514833,0.00014675,2]
[399786040,1766675455489,-111.21855674,0.00017,2]
[399786041,1766675455502,-58167.34076784,0.00017,2]
[399786042,1766675455514,-3607.02658723,0.00017,2]
[399786043,1766675455526,-1455.45344839,0.00017,2]
[399786044,1766675455547,-23916.42488506,0.00017,2]
[399786045,1766675455559,-82732.69066058,0.00017,2]
[399786046,1766675651235,43000.0,0.00032,120]
[399786049,1766675985836,2300.0,0.00032876,120]
[399786056,1766676273928,999.0,0.00013115,3]
[399786063,1766676555220,360.0,0.0002,30]
[399786064,1766676575488,360.0,0.000202,30]
[399786065,1766676620637,158.18302311,0.00012965,120]
[399786066,1766676626288,616.0,0.000202,30]
[399786075,1766676631989,-1600.0,0.00012966,2]
[399786076,1766676632000,-256.0,0.00012966,2]
[399786077,1766676632010,-1000.0,0.00013045,2]
[399786078,1766676632020,-250.0,0.00013104,2]